Cogmind - Beta 15 @@@ ROGUE MODE // 2025.08.29 @ 11:38:33 Player: beans Result: Destroyed by H-55 Commando with Gauss Rifle Performance ------------- Evolutions (2) 1000 Regions Visited (3) 600 Robots Destroyed (27) 135 Value Destroyed (502) 502 Prototype IDs (0) 0 Alien Tech Used (0) 0 Bonus (0) 0 TOTAL SCORE: 2237 Bonus ------- None Cogmind --------- Core Integrity 0/550 Matter 300/300 Energy 79/100 System Corruption 2% Temperature Cool (0) Movement Core (150) Ox2 Location -8/Materials Parts ------- > --- POWER (1) -------- (None) > --- PROPULSION (2) --- (None) > --- UTILITY (4) ------ Improved Heat Sink Improved Signal Interpreter Melee Analysis Suite Hacking Suite > --- WEAPON (4) ------- Assault Rifle Gauss Rifle > --- INVENTORY (5) ---- Large Storage Unit Blade Saw Blade Saw Peak State ------------ > --- POWER ------------ (None) > --- PROPULSION ------- Cesium-ion Thruster > --- UTILITY ---------- Improved Heat Sink Improved Signal Interpreter Advanced Targeting Computer Hacking Suite > --- WEAPON ----------- Blade Saw Blade Saw > --- INVENTORY -------- Large Storage Unit Heavy EM Pulse Gun Blade Saw [Rating: 21] Favorites ----------- Power Ion Engine Engine Ion Engine Propulsion Light Treads Treads Light Treads Flight Unit Cesium-ion Thruster Utility Weapon Shielding Device Improved Heat Sink Storage Large Storage Unit Processor Advanced Targeting Computer Hackware Hacking Suite Protection Weapon Shielding Weapon Heavy EM Pulse Gun Energy Gun Heavy EM Pulse Gun Ballistic Gun Assault Rifle Slashing Weapon Blade Saw Build | -11 -10 -9 -8 ------- Run | Yrd Mat Mat Mat Slots Evolved 4 | . . 2 2 Power . | . . . . Propulsion . | . . . . Utility 2 | . . 1 1 Weapon 2 | . . 1 1 Parts Attached 20 | 3 4 1 12 Power 1 | 1 . . . Engine 1 | 1 . . . Core . | . . . . Reactor . | . . . . Propulsion 3 | 2 . . 1 Treads 2 | 2 . . . Leg . | . . . . Wheel . | . . . . Hover . | . . . . Flight 1 | . . . 1 Utility 7 | . 2 . 5 Device 1 | . . . 1 Storage 1 | . 1 . . Processor 3 | . . . 3 Hackware 1 | . . . 1 Protection 1 | . 1 . . Artifact . | . . . . Weapon 9 | . 2 1 6 Energy Gun 4 | . 2 1 1 Energy Cannon . | . . . . Ballistic Gun 2 | . . . 2 Ballistic Cannon . | . . . . Launcher . | . . . . Special Weapon . | . . . . Impact Weapon . | . . . . Slashing Weapon 3 | . . . 3 Piercing Weapon . | . . . . Special Melee Weapon . | . . . . Unidentified Prototypes . | . . . . Corrupted Parts 1 | . . . 1 System Corruption 2 | . . . 2 Parts Lost 7 | . . . 7 Power 1 | . . . 1 Propulsion 2 | . . . 2 Utility . | . . . . Weapon 4 | . . . 4 Highest Loss Streak 5 | . . . 5 To Critical Strikes . | . . . . Average Backups 1 | . 1 1 1 Power . | . . . . Propulsion . | . . . . Utility . | . . . . Weapon 1 | . 1 1 1 Tool/Special . | . . . . Unused Backups 1 | . . . 1 Power . | . . . . Propulsion 1 | . . . 1 Utility . | . . . . Weapon . | . . . . Tool/Special . | . . . . Average Slot Usage (%) 72 | . 73 88 61 Engine 8 | . 14 11 3 Treads 18 | . 28 22 8 Device 2 | . . . 5 Storage 5 | . . 11 4 Processor 4 | . . . 12 Hackware 3 | . . . 8 Protection 6 | . 8 11 1 Energy Gun 21 | . 22 33 13 Slashing Weapon 1 | . . . 3 Peak Build Rating 21 | 3 9 11 21 Average Rating 10 | 2 7 11 15 On Entrance 5 | . 3 9 11 Naked Turns . | . . . . Heaviest Build 38 | 5 32 35 38 Greatest Support 40 | 40 40 40 40 Greatest Overweight (x) 2 | . . . 2 Average Overweight (x) . | . . . . Largest Inventory Capacity 15 | 5 15 15 15 Average Capacity 9 | 5 5 15 10 Most Carried 5 | 2 4 1 5 Average Carried 1 | . 1 1 1 Final Capacity 15 | 5 15 15 5 Final Carried 3 | . 2 1 3 Class Distribution -------------------- 60% | Mutant 30% | Tank 9% | Gunner Dominant Class ---------------- Mutant | -10/Materials Tank | -9/Materials Mutant | -8/Materials Resources | -11 -10 -9 -8 ----------- Run | Yrd Mat Mat Mat Matter Collected 412 | 181 79 20 132 Remotely . | . . . . Salvage Created 912 | . 171 166 575 Parts 66 | . 7 20 39 Haulers Intercepted 1 | . . . 1 Recyclers Shooed . | . . . . Parts Field Recycled . | . . . . Retrieved Matter . | . . . . Parts Self-Destructed . | . . . . Prevented . | . . . . Kills | -11 -10 -9 -8 ------- Run | Yrd Mat Mat Mat Combat Hostiles Destroyed 14 | . . 4 10 Melee 2 | . . . 2 Guns 9 | . . 4 5 AOE 3 | . . . 3 Classes Destroyed 9 | . 2 4 3 Worker 3 | . 1 . 2 Builder 3 | . . 2 1 Hauler 1 | . . . 1 Recycler 3 | . 2 . 1 Operator 1 | . . . 1 Watcher 2 | . . 1 1 Swarmer 7 | . . 3 4 Grunt 6 | . . . 6 Sentry 1 | . . 1 . Best Kill Streak 6 | . 2 5 6 Combat Bots Only 6 | . . 4 6 Max Kills in Single Turn 3 | . 1 2 3 Gunslinging 1 | . . 1 . Exploded 3 | . . . 3 Melee 1 | . . . 1 Uniques/NPCs Destroyed . | . . . . Combat | -11 -10 -9 -8 -------- Run | Yrd Mat Mat Mat Hostile Shots Fired 136 | . . 5 131 Missed 29 | . . 3 26 Hits 107 | . . 2 105 Projectile 107 | . . 2 105 Critical Strikes 6 | . . . 6 Damage Taken 1297 | . . 32 1265 Core 557 | . . 7 550 Absorbed by Shields . | . . . . Redirected to Shielding 5 | . . 5 . Core Remaining (%) 99 | 100 100 98 . Volleys Fired 34 | . 6 6 22 Largest 4 | . 2 3 4 Hottest 180 | . 90 135 180 Shots Fired 77 | . 12 18 47 Gun 77 | . 12 18 47 Cannon . | . . . . Launcher . | . . . . Special . | . . . . Kinetic 2 | . . . 2 Thermal . | . . . . Explosive . | . . . . Electromagnetic 75 | . 12 18 45 Robot Hit Streak 8 | . 2 6 8 Robot Miss Streak 5 | . 2 1 5 Penetration Max 1 | . . . 1 Secondary Targets 1 | . . 1 . Max Gunslinging Chain 1 | . . 1 . Shots Hit Robots 53 | . 5 12 36 Core Hits 35 | . 3 8 24 Critical Kills . | . . . . Critical Parts Destroyed . | . . . . Critical Strikes 3 | . . . 3 Corrupt 1 | . . . 1 Sever 2 | . . . 2 Melee Attacks 15 | . . . 15 Impact . | . . . . Slashing 15 | . . . 15 Piercing . | . . . . Sneak Attacks 4 | . . . 4 Combat Hostiles . | . . . . Follow-up Attacks . | . . . . Damage Inflicted 1172 | . 125 198 849 Guns 692 | . 91 171 430 Cannons . | . . . . Explosions 193 | . 34 27 132 Melee 271 | . . . 271 Ramming 16 | . . . 16 Kinetic 39 | . . . 39 Thermal 193 | . 34 27 132 Explosive . | . . . . Electromagnetic 653 | . 91 171 391 Impact . | . . . . Slashing 271 | . . . 271 Piercing . | . . . . Highest Corruption 2 | . . . 2 Average Corruption 2 | . . . 2 Corruption Purged . | . . . . Corruption Blocked . | . . . . Effects 2 | . . . 2 Message Errors 1 | . . . 1 Heat Flow Errors 1 | . . . 1 Overload Shots . | . . . . Overflow Damage 23 | . . . 23 Projectiles . | . . . . Explosions . | . . . . Melee 23 | . . . 23 Knockbacks . | . . . . Impact . | . . . . Kinetic . | . . . . Secondary . | . . . . Self-Inflicted Damage 74 | . . 18 56 Shots 2 | . . 1 1 Rammed 8 | . . . 8 Targets Rammed 9 | . . . 9 Kicked . | . . . . Crushed 1 | . . . 1 Highest Temperature 346 | . 60 175 346 Average Temperature 87 | . 26 60 119 Received Heat Transfer 441 | . . . 441 Siege Activations . | . . . . Martial Activations . | . . . . Shielding Activations . | . . . . Robots Disrupted . | . . . . Combat Hostiles . | . . . . Robots Corrupted . | . . . . Combat Hostiles . | . . . . Parts Fried 1 | . . 1 . Impact Corruptions . | . . . . Robots Melted . | . . . . Combat Hostiles . | . . . . Parts Melted . | . . . . Heat Transferred 250 | . 50 50 150 Parts Sabotaged . | . . . . Parts Stolen . | . . . . Parts Stripped . | . . . . Power Chain Reactions 3 | . 1 1 1 Alert | -11 -10 -9 -8 ------- Run | Yrd Mat Mat Mat Maximum Alert Level . | . . . . Low Security (%) 100 | 100 100 100 100 Level 1 . | . . . . Level 2 . | . . . . Level 3 . | . . . . Level 4 . | . . . . Level 5 . | . . . . High Security . | . . . . Max Security . | . . . . Peak Influence 155 | . 10 100 155 Initial 11 | . . . 11 Average 47 | . 1 42 95 Influence Increases 466 | . 19 124 323 Destroy 0b10 Robot/C 280 | . . 80 200 Destroy 0b10 Robot/NC 65 | . 15 15 35 Destroy Leader 56 | . . 22 34 Disable Machine 15 | . . . 15 Destroy Structure 20 | . 4 7 9 Partial Spotted 15 | . . . 15 Lose Combat Pursuer 15 | . . . 15 Influence Decreases 352 | . 19 97 236 Entered New Map 16 | . . . 16 Time Decay 266 | . 19 97 150 Lost Part 70 | . . . 70 Squads Dispatched 2 | . . . 2 Investigation . | . . . . Extermination . | . . . . Reinforcement 2 | . . . 2 Assault . | . . . . Garrison . | . . . . Intercept . | . . . . Searches Triggered . | . . . . Construction Impeded . | . . . . Haulers Reinforced . | . . . . Active Scanning Responses . | . . . . Cargo Convoy Interrupts . | . . . . Stealth | -11 -10 -9 -8 --------- Run | Yrd Mat Mat Mat Distress Signals 2 | . . . 2 Communications Jammed . | . . . . Distress Signals . | . . . . Times Spotted 31 | . 1 5 25 Peak Tracking Total 9 | . 1 4 9 Tactical Retreats 1 | . . . 1 Traps | -11 -10 -9 -8 ------- Run | Yrd Mat Mat Mat Traps Triggered . | . . . . Indirectly . | . . . . Trap Hack Attempts . | . . . . Triggered . | . . . . Disarmed . | . . . . Reprogrammed . | . . . . Reused . | . . . . Traps Extracted . | . . . . Installed . | . . . . Triggered . | . . . . Machines | -11 -10 -9 -8 ---------- Run | Yrd Mat Mat Mat Machines Disabled 1 | . . . 1 Max in Single Turn 1 | . . . 1 Machines Repaired . | . . . . Machines Dismantled . | . . . . Machines Sabotaged . | . . . . Overloaded Fab Kills . | . . . . Hacking | -11 -10 -9 -8 --------- Run | Yrd Mat Mat Mat Machines Accessed . | . . . . Terminals . | . . . . Fabricators . | . . . . Repair Stations . | . . . . Recycling Units . | . . . . Scanalyzers . | . . . . Garrison Access . | . . . . Total Hacks . | . . . . Successful . | . . . . Failed . | . . . . Catastrophic . | . . . . Database Lockouts . | . . . . Manual . | . . . . Terminals . | . . . . Fabricators . | . . . . Repair Stations . | . . . . Recycling Units . | . . . . Scanalyzers . | . . . . Garrison Access . | . . . . Terminal Hacks . | . . . . Fabricator Hacks . | . . . . Repair Station Hacks . | . . . . Recycling Unit Hacks . | . . . . Scanalyzer . | . . . . Garrison Access Hacks . | . . . . Unauthorized Hacks . | . . . . Terminals . | . . . . Fabricators . | . . . . Repair Stations . | . . . . Recycling Units . | . . . . Scanalyzers . | . . . . Garrison Access . | . . . . Data Cores Recovered . | . . . . Used . | . . . . Hacking Detections . | . . . . Full Trace Events . | . . . . Feedback Events . | . . . . Feedback Blocked . | . . . . Robot Schematics Acquired . | . . . . Robots Built . | . . . . Authchips . | . . . . Time . | . . . . Total Robot Build Rating . | . . . . Part Schematics Acquired . | . . . . Parts Built . | . . . . Authchips . | . . . . Time . | . . . . Total Part Build Rating . | . . . . Parts Repaired . | . . . . Time . | . . . . Parts Recycled . | . . . . Recycled Matter . | . . . . Retrieved Matter . | . . . . Retrieved Components . | . . . . Parts Scanalyzed . | . . . . Part Schematics Acquired . | . . . . Parts Damaged . | . . . . Bothacking | -11 -10 -9 -8 ------------ Run | Yrd Mat Mat Mat Used RIF Installer . | . . . . Robots Hacked . | . . . . Non-combat . | . . . . Combat . | . . . . Robot Hacks Applied . | . . . . Relay Couplers Released . | . . . . Fabnet Peak Effective % . | . . . . Robots Rewired . | . . . . Allies Hacked . | . . . . Hacks Repelled . | . . . . Allies | -11 -10 -9 -8 -------- Run | Yrd Mat Mat Mat Total Allies . | . . . . Largest Group . | . . . . Highest-Rated Group . | . . . . Highest-Rated Ally . | . . . . Total Orders . | . . . . Ally Attacks . | . . . . Total Damage . | . . . . Kills . | . . . . Allies Corrupted . | . . . . Allies Melted . | . . . . Intel | -11 -10 -9 -8 ------- Run | Yrd Mat Mat Mat Active Infowar (turns) . | . . . . Robot Analysis Total . | . . . . Derelict Logs Recovered . | . . . . Drone Launches . | . . . . Drone Recoveries . | . . . . Exploration | -11 -10 -9 -8 ------------- Run | Yrd Mat Mat Mat Turns Passed 842 | 57 241 227 317 Spaces Moved 469 | 36 134 130 169 Core 51 | 9 . . 42 Treads 345 | 27 134 130 54 Legs . | . . . . Wheels . | . . . . Hover . | . . . . Flight 73 | . . . 73 Fastest Speed 35 | 50 160 160 35 Average Speed 133 | 132 160 160 92 Slowest Speed 240 | 160 160 160 240 Overloaded Moves . | . . . . Propulsion Burnouts . | . . . . Robots Hopped . | . . . . Potential Cave-ins . | . . . . Cave-ins Triggered . | . . . . Exploration Rate (%) 16 | 4 21 20 22 Regions Visited 3 Branch Regions . Pre-discovered Areas . | . . . . Known Exits Taken . | . . . . Unknown Exits Taken 3 | 1 1 1 . Scrap Searched . | . . . . Spaces Dug . | . . . . Terrain Destroyed 18 | . 4 6 8 Melee . | . . . . Projectile . | . . . . AOE 18 | . 4 6 8 Terrain Rammed . | . . . . Walls Destroyed . | . . . . Machines Disabled . | . . . . Actions | -11 -10 -9 -8 --------- Run | Yrd Mat Mat Mat Total 592 | 45 149 136 262 Wait 19 | 4 . . 15 Move 466 | 35 133 129 169 Hop . | . . . . Pick Up 20 | 3 6 . 11 Fast Attach 1 | . . . 1 Attach 18 | 3 4 1 10 Detach 3 | . . . 3 Swap 2 | . . . 2 Drop 5 | . . . 5 Fire 34 | . 6 6 22 Melee 15 | . . . 15 Ram . | . . . . Kick . | . . . . Crush 9 | . . . 9 Escape Stasis . | . . . . Rewire . | . . . . Trap . | . . . . Miscellaneous . | . . . . Route ------- -11/Scrapyard -10/Materials (discovered 2 exits: [*Mat] / [*Min]) -9/Materials -8/Materials History --------- Turn | Location | Event 18 | -11/Scrapyard | Discovered new exit (range 16) 58 | -11/Scrapyard | Entered Materials 256 | -10/Materials | Discovered new exit (range 13) 256 | -10/Materials | Discovered new exit (range 14) 299 | -10/Materials | Entered another Materials area 299 | -9/Materials | Evolved 2 slots: Utility x1, Weapon x1 514 | -9/Materials | Discovered new exit (range 6) 526 | -9/Materials | Entered another Materials area 526 | -8/Materials | Evolved 2 slots: Utility x1, Weapon x1 659 | -8/Materials | Lost 5 parts (1p1n3w) 772 | -8/Materials | Core integrity fell below 50% 828 | -8/Materials | Core integrity fell below 20% 843 | -8/Materials | Destroyed by H-55 Commando with Gauss Rifle Last Messages --------------- Destroyed Hover Unit. K-01 Serf collects debris. Sneak attack on R-06 Scavenger. Destroyed Com. Wheel. K-01 Serf collects debris. Critical hit (Burn: +37). Slug penetrates Wall. Blade Saw destroyed. Slug penetrates Wall. G-47 Trooper destroyed. Critical hit (Burn: +37). K-01 Serf collects debris. Slug penetrates Wall. Critical hit (Burn: +37). K-01 Serf collects debris. Slug penetrates K-01 Serf. K-01 Serf destroyed. R-06 Scavenger destroyed. Extracted 37 matter. Slug penetrates Wall. Map ----- +----------------------------------------------------+ | ?????????????????????????????????????????????????? | | ?????????????????????????????????????????????????? | | ?????????????????????????????????????????????????? | | ?????????????????????????????????????????????????? | | ?????????????????????????????????????????????????? | | ?????????????????????????????????????????????????? | | ?????????????????????????????????????????????????? | | ?????????????????????????????????????????????????? | | ?????????????????????????????????????????????????? | | ?????????????????????????????????????????????????? | | ?????????????????????????????????????????????????? | | ?????????????????????????#???????????????????????? | | ????????????????????????? ???????????????????????? | | ????????????????????????? ???????????????????????? | | ????????????????????????? ???????????????????????? | | ????????????????????????? ???????????????????????? | | ????????????????????????? ???????????????????????? | | ????????????????????????#^#??????????????????????? | | ????????????????????????# #??????????????????????? | | ????????????????????????# #??????????????????????? | | ????????????????????????# #??????????????????????? | | ????????????????????????# #??????????????????????? | | ????????????????????????# #??????????????????????? | | ????????????????????????#%#??????????????????????? | | ????????????#############/#??????????????????????? | | ????????????# """ """=@#??????????????????????? | | ????????????# """""""""!#??????????????????????? | | ????????????# """"" *#??????????????????????? | | ????????????# Y #??????????????????????? | | ????????????# ! wu #??????????????????????? | | ????????????# %g ]#???????????#+###??????? | | ??????##############+################ #??????? | | ????? *= ![! #####??? | | ????? [[! ?? | | ????? =| [[! #??????? | | ???????#############=########## #??????? | | ???????????????????#%#????????# [ #??????? | | ????????############/########?# ""?????? | | ????????# ![# #?# G"????? | | ????????# # #?# "" ????? | | ????????# + #?# """ ##?????? | | ????????# """ """ """ # #?# """ #??????? | | ??????????""" """ """ # #?T """ #??????? | | ???????????"" """ """ ## ##?# ?????? | | ?????????????########### #??# ? ????? | | ???????????????????????# #??# ??? ?????? | | ???????????????????????# #??# #????#####?????? | | ???????????????????????# #??# #??????????????? | | ???????????????????????# #??# #??????????????? | | ???????????????????????# #### #??????????????? | +----------------------------------------------------+ Best States ------------- Heat Dissipation 45 Energy Generation 10 Energy Capacity 250 Matter Stores 300 Matter Capacity 300 Sight Range 16 Terrain Scan Density 10 Weapon Shielding 33 Evasion (%) 50 Targeting Accuracy 8 Melee Accuracy 5 Recoil Reduction 2 Offensive Hacking 10 Item Schematics ----------------- None Robot Schematics ------------------ None Fabricated ------------ Nothing Repaired ---------- Nothing Alien Tech Used ----------------- None Achievements -------------- None Challenges ------------ None Game ------ Seed TitaniumFieldField Manual? 0 Play Time 00:07:04 Cumulative 110.5 hours Start 2025.08.29 @ 11:32:02 End 2025.08.29 @ 11:38:33 Sessions 1 Manual Loads 0 Difficulty Rogue Special Mode None Game No. 409 Rogue 409 Adventurer 0 Explorer 0 Win Type - Total 0 Types 0/0/0/0/0/0/0/0/0/0 Lore% 44 Gallery% 43 Achievement% 31 Wizard Run 0 Options --------- Layout 2 ASCII 0 Keyboard 0 Movement Mouse Keybinds 0 Fullscreen 2 Font 24/Smallcaps Map View 50x44 Zoom Use 0% Tactical HUD 0 Map Filters NONE Filters NONE Steam 1 RUN: 7c96a248-56f5-4746-b7c3-eab579a06539